bitfinex-derivatives/quotes_ETHF0:USTF0_20250702
["timestamp","ask_amount","ask_price","bid_price","bid_amount"]
[1751469103551,18.33035866,2493.3,2493.0,0.80196]
[1751469103752,0.12035866,2493.3,2493.2,2.00739999]
[1751469104056,39.83417,2494.0,2493.2,3.35844603]
[1751469104252,0.80181,2493.5,2493.3,2.55655603]
[1751469104452,15.09157789,2494.6,2493.8,0.80168]
[1751469104453,0.12035866,2494.0,2493.8,0.80168]
[1751469104755,37.762,2494.2,2494.1,2.00739999]
[1751469105053,2.0036,2494.7,2493.8,0.3855088]
[1751469105054,0.12030798,2494.1,2494.0,0.80164]
[1751469105253,2.21969111,2495.6,2494.0,13.65491484]
[1751469105254,18.21,2495.5,2494.0,13.65491484]
[1751469105454,0.80132,2495.0,2494.9,2.00739999]
[1751469105657,41.33284628,2495.4,2494.0,0.3855088]
[1751469105862,0.80144,2494.7,2494.5,2.00739999]
[1751469106059,18.21,2494.9,2494.8,2.00739999]
[1751469106352,0.80166,2494.0,2493.7,1.15109338]
[1751469106551,57.76,2494.4,2493.9,2.00739999]
[1751469106755,18.203,2494.3,2494.2,2.00739999]
[1751469106951,19.00456,2494.3,2493.9,0.80167]
[1751469107150,0.12024771,2494.3,2494.0,0.57082999]
[1751469107450,2.00414,2494.0,2493.4,1.15109338]
[1751469107654,0.8018,2493.6,2493.5,3.82665107]
[1751469107857,0.80176,2493.7,2493.5,0.57094253]
[1751469108054,2.17648,2493.9,2493.8,2.00739999]
[1751469108254,2.17648,2493.9,2493.8,2.57834252]
[1751469108559,2.17648,2493.9,2493.8,0.57094253]
[1751469109455,2.00428,2493.8,2493.1,1.15109338]
[1751469109757,0.80187,2493.3,2493.2,1.81553515]
[1751469109959,3.91287263,2496.0,2493.3,1.4065]
[1751469110257,5.3e-07,2498.1,2498.0,0.80036]
[1751469110458,5.3e-07,2498.1,2496.7,0.697]
[1751469110657,0.00601702,2498.1,2498.0,0.12025735]
[1751469110961,57.75801702,2498.1,2498.0,0.625683]
[1751469111259,2.0043,2497.7,2497.2,40.8]
[1751469111558,1.4415,2498.0,2497.8,0.00601649]
[1751469111761,57.752,2498.1,2497.8,0.00601649]
[1751469111954,57.752,2498.1,2497.9,0.62575155]
[1751469112153,57.752,2498.1,2498.0,0.9275413]
[1751469112355,57.752,2498.1,2498.0,2.52949866]
[1751469112556,65.55663,2498.1,2498.0,2.52949866]
[1751469112752,64.87639367,2498.1,2498.0,1.90374711]
[1751469112954,64.87300367,2498.1,2496.4,3.04200948]
[1751469113156,11.08419789,2497.4,2496.1,3.04200948]
[1751469113352,11.08419789,2497.2,2495.8,3.04200948]
[1751469113662,96.6591562,2497.1,2495.9,3.04200948]
[1751469113963,1.99998,2499.2,2497.0,13.08589789]
[1751469114156,38.842,2498.9,2497.7,0.80044]
[1751469114362,57.8391562,2498.5,2497.1,1.4414]
[1751469114557,57.8391562,2498.5,2496.7,11.08419789]
[1751469114763,57.8391562,2498.5,2498.4,0.80023]
[1751469114764,0.1201562,2498.5,2498.4,0.80023]
[1751469114954,0.21407135,2498.6,2497.2,5.25010223]
[1751469115256,57.83908886,2498.5,2497.8,0.8004]
[1751469115463,0.80032,2498.2,2496.1,4.00486]
[1751469115663,0.80035,2498.1,2496.7,2.00195]
[1751469115960,0.12010088,2498.1,2497.4,0.80054]
[1751469116157,57.719,2498.5,2497.4,11.08419789]
[1751469116557,0.12010088,2498.4,2496.9,2.00175]
[1751469116760,0.80028,2498.3,2497.6,0.80047]
[1751469117063,0.12010088,2498.4,2497.3,11.08419789]
[1751469117254,0.12009848,2498.2,2497.8,0.80041]
[1751469117562,0.12009848,2498.4,2497.3,11.08419789]
[1751469117764,0.80028,2498.3,2497.6,0.80047]
[1751469117952,0.80028,2498.3,2497.4,1.377]
[1751469117953,0.12010328,2498.4,2497.4,1.377]
[1751469118159,0.12010328,2498.2,2497.4,1.377]
[1751469118367,0.80027,2498.3,2497.6,0.80047]
[1751469118661,57.719,2498.5,2497.4,1.377]
[1751469118662,0.21407135,2498.6,2497.7,5.44337235]
[1751469118956,0.21407135,2498.6,2498.3,0.80024]
[1751469119157,0.21407135,2498.6,2497.7,11.08419789]
[1751469119458,0.80024,2498.4,2497.8,0.80042]
[1751469119663,0.8003,2498.2,2497.6,0.80047]
[1751469119863,0.80035,2498.1,2497.5,0.8005]
[1751469120062,0.80041,2497.9,2497.3,0.80057]
[1751469120258,0.80032,2498.2,2497.6,0.80048]
[1751469120466,0.80031,2498.2,2497.6,0.80047]
[1751469120658,0.12011531,2498.1,2497.4,11.08419789]
[1751469120864,0.7028,2498.4,2497.8,11.08419789]
[1751469121063,57.679,2498.5,2498.3,0.80027]
[1751469121365,57.679,2498.5,2497.8,11.08419789]
[1751469121567,57.679,2498.5,2497.6,2.00124]
[1751469121764,57.679,2498.5,2498.4,0.80024]
[1751469121958,57.679,2498.5,2497.8,11.09020161]
[1751469122163,0.00600372,2498.3,2498.2,0.8003]
[1751469122360,3.72e-06,2498.3,2498.2,11.88449789]
[1751469122659,58.46884,2499.7,2498.4,2.00058]
[1751469122863,58.46884,2499.7,2498.5,1.3078]
[1751469122864,57.669,2499.7,2498.5,1.3078]
[1751469123059,57.669,2499.7,2498.4,2.00058]
[1751469123060,0.79995,2499.4,2498.2,11.08419789]
[1751469123259,0.12008405,2499.6,2498.3,1.3078]
[1751469123459,57.669,2499.7,2498.3,6.69724954]
[1751469123773,50.79974,2500.0,2498.9,2.00018]
[1751469124063,50.0,2500.0,2499.2,1.99989]
[1751469124257,50.0,2500.0,2499.6,0.79983]
[1751469124461,50.0,2500.0,2499.0,1.3078]
[1751469124663,50.0,2500.0,2499.1,11.08419789]
[1751469124859,50.0,2500.0,2499.0,1.3078]
[1751469124860,50.0,2500.0,2499.0,3.30786]
[1751469125068,1.3677,2502.3,2499.9,11.08419789]
[1751469125264,0.79922,2501.6,2500.8,0.79946]
[1751469125466,1.99845,2501.1,2500.0,5.23156472]
[1751469125761,0.11994242,2501.0,2499.7,0.685]
[1751469125968,0.11994242,2501.0,2500.9,0.00600372]
[1751469126169,0.7994,2501.0,2500.9,0.00600372]
[1751469126468,0.79926,2501.5,2500.9,5.00600372]
[1751469126763,0.79911,2502.0,2501.0,12.51359789]
[1751469126964,2.20905158,2502.1,2501.0,1.4294]
[1751469127159,0.21136158,2502.1,2500.9,0.00600372]
[1751469127365,0.11995441,2501.9,2501.3,11.08419789]
[1751469127565,57.652,2503.3,2501.7,11.08419789]
[1751469127766,1.99677,2503.2,2501.8,1.4294]
[1751469127960,0.11992804,2502.8,2501.0,11.08419789]
[1751469128159,0.6977,2503.0,2501.3,1.4294]
[1751469128368,1.99754,2502.3,2501.0,11.08419789]
[1751469128670,0.79908,2502.0,2501.9,0.00600372]
[1751469128968,360.28989688,2502.0,2497.7,3.04200948]
[1751469129265,0.80013,2498.8,2497.8,39.10138989]
[1751469129563,1.99978,2499.5,2497.8,39.10138989]
[1751469129564,57.627,2499.5,2498.1,11.08419789]
[1751469129765,56.95674852,2499.5,2498.2,2.93428851]
[1751469129969,56.95674852,2499.5,2497.9,0.12008165]
[1751469129970,0.80024,2498.4,2498.3,1.33347594]
[1751469130367,0.80023,2498.5,2498.3,1.33347594]
[1751469130565,0.80023,2498.5,2497.8,37.8112]
[1751469130566,1.99996,2499.2,2498.4,1.33347594]
[1751469130768,0.80017,2498.6,2498.5,1.33347594]
[1751469130968,0.80017,2498.6,2498.5,2.93490961]
[1751469131171,5.80017,2498.6,2498.5,2.09573961]
[1751469131571,2.00052,2498.5,2497.5,7.6050237]
[1751469131872,0.12006964,2498.4,2497.5,7.6050237]
[1751469132072,0.80027,2498.3,2498.2,0.14839567]
[1751469132368,2.12074964,2498.3,2496.9,7.6050237]
[1751469132567,11.08419789,2498.0,2496.9,7.6050237]
[1751469132970,2.00139,2497.5,2496.2,9.88653081]
[1751469133166,0.80088,2496.4,2496.2,9.88653081]
[1751469133370,0.80088,2496.4,2496.1,7.6050237]
[1751469133371,0.80094,2496.2,2496.1,7.6050237]
[1751469133774,0.80108,2495.8,2495.5,7.6050237]
[1751469133974,0.80101,2496.0,2495.9,0.00600372]
[1751469134170,5.80101,2496.0,2495.9,0.00600372]
[1751469134375,5.92118545,2496.0,2495.9,3.72e-06]
[1751469135177,5.12017545,2496.0,2495.6,1.99018959]
[1751469135477,0.8011,2495.7,2494.9,0.80133]
[1751469135672,1.4168,2495.9,2495.0,1.4366]
[1751469135879,1.4168,2495.9,2495.1,0.80128]
[1751469136171,1.4168,2495.9,2495.0,1.4366]
[1751469136172,0.12020193,2495.8,2495.0,1.4366]
[1751469136371,0.80117,2495.5,2495.0,1.4366]
[1751469136573,1.4168,2495.7,2495.0,1.4366]
[1751469136769,0.1202212,2496.3,2495.0,1.4366]
[1751469137069,1.4168,2496.3,2495.8,2.31096564]
[1751469137275,1.5370212,2496.3,2495.8,2.31096564]
[1751469138170,6.5370212,2496.3,2494.3,2.00388]
[1751469138374,2.00242,2496.2,2495.7,2.31334648]
[1751469138574,40.4347,2496.1,2495.8,2.31413455]
[1751469138774,0.80104,2495.9,2495.8,0.14233455]
[1751469138966,96.634,2495.9,2495.8,0.14233455]
[1751469139170,96.75422602,2495.9,2495.1,0.80128]
[1751469139478,1.3937,2495.8,2495.4,0.80118]
[1751469139673,1.3937,2495.8,2494.9,1.3544]
[1751469139975,0.12021638,2495.7,2494.9,1.3544]
[1751469140175,0.92132638,2495.7,2495.2,0.80125]
[1751469140376,0.12021638,2495.7,2494.9,1.3544]
[1751469140577,0.80121,2495.4,2494.9,1.3544]
[1751469140776,0.80121,2495.4,2494.9,2.15575]
[1751469141181,0.80121,2495.4,2494.9,1.3544]
[1751469141182,0.12021879,2495.3,2494.9,1.3544]
[1751469141378,0.80122,2495.4,2494.9,1.3544]
[1751469141379,57.65,2495.9,2494.9,1.3544]
[1751469141675,0.80127,2495.2,2494.2,38.50396]
[1751469141876,0.80137,2494.9,2494.3,1.3743]
[1751469142076,40.32083566,2495.8,2494.3,2.17583]
[1751469142077,0.8014,2494.8,2494.3,2.17583]
[1751469142272,0.92162566,2494.8,2494.3,2.17584]
[1751469142579,0.00600372,2494.9,2494.3,42.1743]
[1751469142779,0.00600372,2494.9,2494.8,0.80139]
[1751469143179,0.00600372,2494.9,2494.8,1.13261189]
[1751469143380,0.00600372,2494.9,2494.8,0.33122189]
[1751469143576,0.00600372,2494.9,2494.8,2.48124597]
[1751469144081,58.59961143,2494.9,2494.8,3.65863105]
[1751469144279,58.59961143,2494.9,2494.8,3.1158799]
[1751469144479,58.59961143,2494.9,2494.8,3.65844157]
[1751469144677,96.38125143,2494.9,2494.8,2.10588674]
[1751469144872,96.32525143,2494.9,2494.8,2.48154816]
[1751469145182,57.67800372,2494.9,2494.8,4.03410299]
[1751469145582,57.67800372,2494.9,2494.8,4.03411069]
[1751469145774,0.00600372,2494.9,2494.8,2.48155586]
[1751469146080,96.111,2495.8,2495.0,2.00328]
[1751469146281,57.684,2495.8,2495.5,0.80116]
[1751469146484,96.111,2495.8,2495.6,2.10588674]
[1751469146673,96.91208,2495.8,2495.7,2.10588674]
[1751469146878,96.91208,2495.8,2495.7,1.56332507]
[1751469147073,102.03228916,2495.8,2495.7,1.56332507]
[1751469147278,63.60528916,2495.8,2495.7,1.56332507]
[1751469147473,63.60528916,2495.8,2495.7,0.33122189]
[1751469147674,96.16420916,2495.8,2495.7,0.33122189]
[1751469147880,58.60527916,2495.8,2495.7,0.87398397]
[1751469148075,101.96527916,2495.8,2495.7,0.33122189]
[1751469148279,101.96527916,2495.8,2495.7,0.32521817]
[1751469148484,0.80123,2495.3,2495.2,1.55147007]
[1751469148784,0.80123,2495.3,2495.2,2.78379069]
[1751469149077,0.80123,2495.3,2495.2,1.23232062]
[1751469149078,0.12020434,2495.3,2495.2,1.23232062]
[1751469149279,0.00600372,2496.0,2495.2,2.78379069]
[1751469149484,39.01302372,2496.0,2495.6,0.80113]
[1751469149782,18.349,2495.9,2495.6,0.80113]
[1751469149984,56.67321157,2495.9,2495.6,0.80112]
[1751469150179,38.175,2495.8,2495.3,1.4206]
[1751469150380,0.00600372,2496.0,2495.4,4.78703856]
[1751469150581,56.464,2495.9,2495.8,0.80107]
[1751469150788,56.464,2495.9,2495.8,2.03366849]
[1751469151087,0.00600372,2496.0,2495.9,0.80104]
[1751469151381,18.349,2496.5,2496.2,0.80093]
[1751469151581,18.349,2496.5,2495.6,2.0028]
[1751469151582,56.423,2496.5,2495.9,1.4206]
[1751469151783,0.12019471,2496.4,2494.7,0.6984]
[1751469152090,2.00249,2496.1,2494.6,1.4206]
[1751469152279,1.3149,2496.0,2494.0,2.00413]
[1751469152580,2.00268,2495.8,2494.8,0.00600372]
[1751469152778,0.80122,2495.4,2495.0,0.80131]
[1751469153087,0.80127,2495.2,2494.8,0.80737372]
[1751469153287,0.12024048,2495.3,2494.8,1.34120372]
[1751469153483,39.97315,2496.5,2495.1,2.00322]
[1751469153683,2.00228,2496.3,2495.2,1.3352]
[1751469153890,0.12023807,2496.0,2495.2,1.3352]
[1751469154086,0.80109,2495.8,2495.3,0.80123]
[1751469154384,56.323,2495.9,2495.3,2.00305]
[1751469154591,56.319,2495.9,2495.4,1.3352]
[1751469154986,0.80107,2495.8,2495.4,2.13639]
[1751469155281,0.8011,2495.7,2494.9,0.6778]
[1751469155482,0.80124,2495.3,2495.0,1.384]
[1751469155885,2.00287,2495.6,2495.0,1.384]
[1751469156189,0.12022602,2495.2,2494.8,0.00600372]
[1751469156385,37.828,2495.3,2494.9,1.384]
[1751469156583,37.828,2495.3,2494.8,0.00600372]
[1751469156884,0.80136,2494.9,2494.8,0.00600372]
[1751469157390,0.92160048,2494.9,2494.8,0.00600372]
[1751469157987,0.80155,2494.3,2494.2,0.6778]
[1751469158193,55.83,2494.5,2493.3,0.6831]
[1751469158394,0.12024771,2494.3,2493.7,0.80173]
[1751469158687,0.80162,2494.1,2493.8,1.3366]
[1751469158888,55.769,2494.4,2493.8,1.3366]
[1751469159085,0.8016,2494.2,2493.8,1.3366]
[1751469159285,55.687,2494.1,2493.8,1.3366]
[1751469159490,0.80166,2494.0,2493.8,1.3366]
[1751469159690,56.48864,2494.1,2493.8,1.3366]
[1751469160089,55.687,2494.1,2493.8,1.3366]
[1751469160595,56.48864,2494.1,2493.8,1.3366]
[1751469160792,55.687,2494.1,2493.8,1.3366]
[1751469160987,56.48863,2494.1,2493.8,1.3366]
[1751469161388,0.00600372,2494.3,2493.8,1.3366]
[1751469161694,55.47900372,2494.3,2494.0,0.80162]
[1751469161890,55.47900372,2494.3,2494.1,0.80161]
[1751469162084,55.45500372,2494.3,2494.0,0.80163]
[1751469162284,56.25656372,2494.3,2494.1,1.4443]
[1751469162486,55.40000372,2494.3,2494.2,0.80159]
[1751469162893,55.40000372,2494.3,2494.1,2.2459]
[1751469163085,55.40000372,2494.3,2494.2,0.80159]
[1751469163489,55.40000372,2494.3,2493.7,1.4443]
[1751469163490,55.52028276,2494.3,2493.7,1.4443]
[1751469163687,0.00600372,2494.3,2494.2,0.80159]
[1751469164101,0.00600372,2494.3,2494.2,5.80159]
[1751469165202,37.103,2495.0,2494.8,0.80137]
[1751469165394,17.827,2495.2,2494.5,14.41191426]
[1751469165593,37.21827663,2495.1,2494.5,14.41191426]
[1751469165795,57.706,2495.4,2494.9,11.04130426]
[1751469166001,58.50722,2495.4,2495.1,0.80128]
[1751469166198,94.764,2495.4,2495.0,1.3669]
[1751469166402,94.764,2495.4,2494.7,40.8]
[1751469166403,96.76704,2495.4,2494.7,40.8]
[1751469166603,0.80139,2494.8,2494.7,42.1669]
[1751469166805,0.80139,2494.8,2494.7,1.3669]
[1751469167003,0.80139,2494.8,2494.6,0.6769]
[1751469167799,36.993,2494.9,2494.6,0.6769]
[1751469168203,36.993,2494.9,2494.5,0.80148]
[1751469168204,0.80141,2494.8,2494.5,0.80148]
[1751469168806,36.993,2494.9,2494.3,1.3669]
[1751469168807,0.80146,2494.6,2494.3,2.16843]
[1751469169007,0.80156,2494.3,2494.0,1.49753372]
[1751469169307,0.80149,2494.5,2494.2,0.80156]
[1751469169508,0.80147,2494.6,2494.3,0.80154]
[1751469169704,36.759,2494.5,2494.3,0.80154]
[1751469169904,0.12027181,2494.7,2494.1,1.3254]
[1751469170098,36.744,2494.6,2494.1,42.1254]
[1751469170302,36.744,2494.6,2494.2,1.3254]
[1751469171107,0.80137,2494.9,2494.3,13.04519426]
[1751469171404,54.199,2495.0,2494.3,13.04519426]
[1751469171609,2.00295,2495.5,2494.8,11.04130426]
[1751469171798,18.8632,2495.6,2494.8,11.04130426]
[1751469172002,36.581,2495.5,2495.3,0.80121]
[1751469172199,57.704,2495.8,2495.1,2.00322]
[1751469172506,57.704,2495.8,2495.0,2.00333]
[1751469172507,18.76516269,2495.7,2495.6,0.80114]
[1751469172702,17.557,2495.7,2495.6,0.80114]
[1751469172902,0.80114,2495.6,2495.4,0.00600372]
[1751469173205,57.704,2495.8,2495.7,0.8011]
[1751469173505,94.199,2495.8,2495.7,0.8011]
[1751469173804,94.199,2495.8,2495.4,0.00600372]
[1751469174006,1.4026,2495.7,2495.4,0.00600372]
[1751469174506,57.704,2495.8,2495.7,0.8011]
[1751469174704,94.097,2495.8,2495.7,0.8011]
[1751469174913,94.89807,2495.8,2495.6,0.80112]
[1751469175098,1.4026,2496.4,2495.6,0.80112]
[1751469175099,2.37597604,2496.6,2495.6,5.0]
[1751469175303,1.20610302,2496.5,2496.4,0.80088]
[1751469175503,1.20610302,2496.5,2496.4,2.20508]
[1751469175904,19.93097604,2497.2,2497.1,0.80065]
[1751469176101,17.555,2497.2,2497.1,0.80065]
[1751469176407,0.80069,2497.0,2496.9,0.00600372]
[1751469176604,17.555,2497.2,2496.9,0.00600372]
[1751469176605,1.4026,2497.1,2496.9,0.80670372]
[1751469176905,1.4026,2497.1,2496.9,0.00600372]
[1751469176906,0.80069,2497.0,2496.9,0.00600372]
[1751469177109,2.00188,2496.8,2496.1,0.80095]
[1751469177304,2.00188,2496.8,2495.6,13.04409426]
[1751469177305,1.403,2496.9,2495.9,2.00261]
[1751469177506,1.52314657,2496.7,2496.4,0.80086]
[1751469177710,36.238,2496.6,2496.0,11.04130426]
[1751469178005,0.12017304,2496.9,2496.8,0.80075]
[1751469178204,1.403,2497.5,2496.8,11.04130426]
[1751469178406,36.198,2497.4,2497.3,0.80059]
[1751469179006,57.698,2497.6,2497.5,0.80053]
[1751469179211,53.421,2497.9,2497.8,0.80043]
[1751469179505,2.37597604,2498.7,2497.7,13.04243426]
[1751469179707,0.80022,2498.5,2497.8,2.00108]
[1751469180012,54.794,2498.6,2497.9,1.3354]
[1751469180208,54.794,2498.6,2497.3,13.04273426]
[1751469180504,4.00158,2498.2,2495.4,5.43314417]
[1751469180706,2.00093,2498.0,2496.8,0.80073]
[1751469180907,1.3778,2498.1,2496.7,0.80076]
[1751469180908,2.00126,2497.6,2496.7,0.80076]
[1751469181210,2.00741372,2497.4,2496.4,1.3354]
[1751469181410,2.00741372,2497.4,2496.0,2.00252]
[1751469181411,2.00156,2497.2,2495.8,0.6767]
[1751469181601,54.7008,2497.1,2496.7,0.00600372]
[1751469181802,0.80075,2496.8,2496.7,0.00600372]
[1751469182609,0.92091582,2496.8,2496.7,0.00600372]
[1751469182914,0.92091582,2496.8,2496.7,0.80678372]
[1751469182915,0.12016582,2496.8,2496.7,0.80678372]
[1751469183114,0.80073,2496.9,2496.7,0.00600372]
[1751469183309,37.3378,2497.1,2496.7,0.00600372]
[1751469183513,2.17365,2496.8,2496.7,0.00600372]
[1751469183714,2.0021,2496.6,2494.5,2.00371]
[1751469183906,2.0021,2496.6,2494.4,11.04130426]
[1751469183907,59.0459,2496.5,2495.2,11.04130426]
[1751469184214,0.80101,2496.0,2495.3,1.3392]
[1751469184409,37.2899,2495.9,2495.3,1.3392]
[1751469184609,37.2899,2495.9,2495.6,0.80113]
[1751469184803,0.00600372,2495.8,2495.3,1.3392]
[1751469185308,0.00600372,2495.8,2495.6,0.80111]
[1751469185510,0.00600372,2495.8,2494.9,0.6886]
[1751469185709,0.00600372,2495.8,2495.1,1.3392]
[1751469185911,1.37890372,2495.8,2495.1,1.3392]
[1751469186115,1.37890372,2495.8,2495.1,42.1392]
[1751469186309,1.37890372,2495.8,2495.5,0.80115]
[1751469186511,0.00600372,2495.8,2495.1,53.18050426]
[1751469186711,0.00600372,2495.8,2495.7,0.8011]
[1751469186912,0.00600372,2495.8,2495.5,1.4285]
[1751469187114,0.00600372,2495.8,2495.6,0.80113]
[1751469187513,0.00600372,2495.8,2494.9,0.6886]
[1751469187708,0.80129,2495.2,2494.8,0.80138]
[1751469188014,0.80128,2495.2,2494.8,0.80137]
[1751469188209,1.3761,2495.1,2494.7,40.8]
[1751469188413,1.3761,2495.1,2494.9,0.80134]
[1751469188613,1.3761,2495.1,2494.4,0.7124]
[1751469188810,1.3761,2495.1,2494.3,0.80154]
[1751469188811,0.80144,2494.7,2494.3,0.80154]
[1751469189016,0.80142,2494.8,2494.4,0.80151]
[1751469189216,0.80142,2494.8,2494.0,3.43259]
[1751469189217,2.11995,2494.7,2494.3,0.80154]
[1751469189418,2.11995,2494.7,2494.1,40.8]
[1751469189419,2.11995,2494.7,2494.4,0.80151]
[1751469189718,1.3185,2494.7,2494.1,40.8]
[1751469190020,0.00600372,2494.8,2494.2,2.00397]
[1751469190310,0.00600372,2494.8,2493.9,2.72378]
[1751469190509,0.00600372,2494.8,2494.1,2.00405]
[1751469190711,1.32450372,2494.8,2494.2,2.00397]
[1751469190907,35.46200372,2494.8,2494.7,0.80142]
[1751469191314,0.00600372,2494.8,2494.7,0.80142]
[1751469191616,35.401,2495.9,2495.0,2.00333]
[1751469191817,0.80113,2495.7,2495.0,2.00333]
[1751469192018,2.14165,2495.6,2495.3,0.80121]
[1751469192217,1.3405,2495.6,2495.0,42.80333]
[1751469192419,1.3405,2495.6,2495.4,0.8012]
[1751469192615,36.6715,2495.6,2495.5,0.80117]
[1751469192816,36.6715,2495.6,2495.0,42.80333]
[1751469192817,37.47265,2495.6,2495.3,0.80122]
[1751469193017,36.6715,2495.6,2495.0,42.8033]
[1751469193219,17.003,2496.0,2495.1,2.00323]
[1751469193519,37.27864,2495.9,2495.0,40.8]
[1751469193716,1.3405,2495.8,2494.6,1.3338]
[1751469193917,1.3405,2495.8,2494.8,0.80137]
[1751469193918,2.00295,2495.5,2494.8,0.80137]
[1751469194122,1.3405,2495.4,2494.8,0.80137]
[1751469194319,52.24,2495.3,2494.6,0.80144]
[1751469194624,0.80136,2494.9,2494.5,0.80146]
[1751469194823,1.3405,2494.8,2494.5,0.80147]
[1751469195019,1.46074289,2494.8,2493.9,0.7196]
[1751469195226,0.80147,2494.6,2494.2,0.80157]
[1751469195419,1.4293,2494.5,2494.2,0.80157]
[1751469195614,1.4293,2494.5,2494.3,0.80155]
[1751469195919,1.4293,2494.5,2494.3,0.80153]
[1751469196223,1.4293,2494.5,2494.4,0.80152]
[1751469196823,36.5293,2494.5,2494.4,0.80152]
[1751469197018,0.80147,2494.6,2494.3,0.80154]
[1751469197318,1.4293,2494.5,2493.8,2.00426]
[1751469197624,0.80159,2494.2,2493.6,3.39915]
[1751469197822,0.80157,2494.3,2494.0,0.80164]
[1751469198015,2.2467,2494.2,2493.9,0.80166]
[1751469198218,16.743,2494.1,2493.1,0.6975]
[1751469198416,2.24675,2494.0,2493.7,0.80174]
[1751469198624,52.45668,2493.9,2493.6,0.80176]
[1751469198827,1.4451,2493.8,2493.7,0.80175]
[1751469199020,1.4451,2493.8,2493.2,1.3221]
[1751469199222,1.4451,2493.8,2492.6,0.8549]
[1751469199416,1.4451,2493.8,2493.4,0.80183]
[1751469199417,1.56539592,2493.8,2493.4,0.80183]
[1751469199625,1.56539592,2493.8,2493.3,0.80185]
[1751469199927,0.80179,2493.6,2493.3,0.80186]
[1751469200127,1.56539592,2493.8,2492.9,40.8]
[1751469200128,1.4451,2493.5,2492.9,40.8]
[1751469200327,1.56540798,2493.5,2493.4,0.80184]
[1751469200528,52.9941,2493.5,2493.4,0.80184]
[1751469200827,52.9941,2493.5,2493.3,0.80186]
[1751469201030,53.79591,2493.5,2493.2,0.80188]
[1751469201328,52.9941,2493.5,2493.3,0.80187]
[1751469201625,34.738,2493.7,2493.6,0.80178]
[1751469201818,0.80178,2493.6,2493.0,3.43464]
[1751469202018,0.80178,2493.6,2492.5,11.04130426]
[1751469202019,11.04130426,2493.5,2491.9,5.43314417]
[1751469202222,11.04130426,2492.5,2491.5,7.76163454]
[1751469202418,11.04130426,2492.5,2490.7,1.4297]
[1751469202419,111.3944,2492.4,2490.8,2.00669]
[1751469202624,111.51471763,2492.4,2491.4,0.80246]
[1751469202823,111.51471763,2492.4,2491.5,0.80244]
[1751469203022,113.52014763,2492.4,2491.0,2.00652]
[1751469203226,51.47,2492.3,2491.3,2.0063]
[1751469203529,34.97,2492.3,2491.6,11.04130426]
[1751469203724,57.715,2492.4,2492.3,0.8022]
[1751469204526,2.00574,2492.0,2490.1,10.0901249]
[1751469204726,3.2321,2492.3,2490.3,2.00704]
[1751469204925,2.33778832,2491.9,2490.6,2.00683]
[1751469205224,35.24,2491.8,2490.9,0.80262]
[1751469205423,0.80258,2491.1,2490.5,0.80277]
[1751469205621,35.218,2491.0,2490.6,0.80273]
[1751469205826,35.218,2491.0,2490.5,2.18424]
[1751469206129,36.6331,2491.0,2490.8,0.80267]
[1751469206326,36.6331,2491.0,2490.8,0.80265]
[1751469206525,35.218,2491.0,2490.5,1.3815]
[1751469206829,35.121,2491.0,2490.9,0.80264]
[1751469207024,35.121,2491.0,2490.7,0.80267]
[1751469207220,35.097,2491.0,2490.6,2.00684]
[1751469207425,0.00601588,2491.2,2490.9,0.80264]
[1751469207626,0.00601588,2491.2,2491.1,0.80257]
[1751469207833,74.493,2492.4,2491.8,0.80235]
[1751469208122,74.493,2492.4,2491.0,1.3907]
[1751469208123,0.12043114,2492.2,2491.0,1.3907]
[1751469208327,0.80232,2491.9,2491.4,0.80246]
[1751469208529,1.3642,2491.8,2491.4,0.80246]
[1751469208832,0.12043114,2491.8,2491.6,0.80238]
[1751469209026,74.498,2492.4,2492.0,0.80227]
[1751469209426,74.498,2492.4,2491.3,2.00628]
[1751469209427,36.48060455,2492.3,2491.6,2.00603]
[1751469209621,36.48060455,2492.3,2491.7,1.3907]
[1751469209823,57.715,2492.4,2491.7,3.39661]
[1751469210027,92.649,2492.4,2491.7,1.3907]
[1751469210227,92.649,2492.4,2492.1,0.80224]
[1751469210527,0.80222,2492.2,2491.3,2.00623]
[1751469210727,2.33169764,2492.3,2491.9,0.80231]
[1751469210932,1.4091,2492.3,2491.8,0.80234]
[1751469211133,35.01139731,2492.2,2491.9,0.8023]
[1751469211334,35.01139731,2492.2,2491.8,0.80233]
[1751469211528,35.01139731,2492.2,2491.9,0.80231]
[1751469211725,57.715,2492.4,2491.6,2.00603]
[1751469212033,34.822,2492.3,2492.0,0.80226]
[1751469212331,34.822,2492.3,2492.0,0.80227]
[1751469212635,35.62419,2492.3,2491.9,0.80229]
[1751469212833,37.03329,2492.3,2491.9,0.80229]
[1751469213034,36.2311,2492.3,2492.0,0.80227]
[1751469213224,36.2311,2492.3,2491.6,2.00603]
[1751469213529,36.2311,2492.3,2492.0,0.80225]
[1751469213934,37.03329,2492.3,2492.0,0.80225]
[1751469214230,36.2311,2492.3,2491.7,2.00595]
[1751469214438,36.2311,2492.3,2492.0,0.80227]
[1751469214835,36.2311,2492.3,2492.1,0.80225]
[1751469215234,36.2311,2492.3,2492.0,0.80226]
[1751469215437,36.2311,2492.3,2492.1,0.80225]
[1751469215735,34.552,2492.2,2492.0,0.80226]
[1751469215936,34.552,2492.2,2492.1,0.80225]
[1751469216634,11.04130426,2492.8,2492.1,0.80225]
[1751469216635,0.8628,2493.3,2492.1,5.0]
[1751469216835,0.00601588,2492.4,2492.3,0.80219]
[1751469217034,0.00601588,2492.4,2492.3,0.80820588]
[1751469217336,0.00601588,2492.4,2492.3,5.80820588]
[1751469218035,0.00601588,2492.4,2492.3,0.80820588]
[1751469218840,0.00601588,2492.4,2492.3,5.80820588]
[1751469219636,0.00601588,2492.4,2492.3,0.80820588]
[1751469220332,0.00601588,2492.4,2492.3,5.80820588]